[Event "50th La Roda Open 2024"]
[Site "La Roda"]
[Date "2024.03.30"]
[Round "7.1"]
[White "Sonis, Francesco"]
[Black "Aravindh, Chithambaram VR."]
[Result "1/2-1/2"]
[ECO "E05"]
[WhiteElo "2562"]
[BlackElo "2662"]
[Annotator "TA"]
[PlyCount "62"]
[EventDate "2024.03.27"]
[EventType "swiss"]
[EventCountry "ESP"]
[SourceTitle "playchess.com"]
[Source "ChessBase"]
[SourceQuality "1"]
[TimeControl "5400+30"]

{[%evp 20,62,37,12,21,16,8,-18,-10,-13,-23,-20,0,0,0,-9,-9,-8,-10,-13,0,0,0,-2,0,-7,0,-9,0,0,0,0,0,-5,-6,-13,0,0,0,-15,0,0,0,0,0]} 1. Nf3 {[%emt 0:00:30]} Nf6 {[%emt 0:00:12]} 2. c4 {[%emt 0:00:00]} e6 {[%emt 0:00:12]} 3. g3 {[%emt 0:01:42]} d5 {[%emt 0:00:27]} 4. Bg2 {[%emt 0:00:04]} Be7 {[%emt 0:00:17]} 5. O-O {[%emt 0:00:09]} O-O {[%emt 0:00:06]} 6. d4 {[%emt 0:00:03]} dxc4 {[%emt 0:00:17]} 7. Qc2 {[%emt 0:00:05]} a6 {[%emt 0:00:16]} 8. a4 {[%emt 0:00:06]} Bd7 {[%emt 0:00:07]} 9. Qxc4 {[%emt 0:00:44]} Bc6 {[%emt 0:00:07]} 10. Nc3 {[%emt 0:00:23]} Nbd7 {[%emt 0:00:21]} 11. Bf4 {[%emt 0:00:19]} Nb6 {[%emt 0:07:09]} 12. Qd3 {[%emt 0:04:57]} Nbd5 {[%emt 0:01:46]} 13. Ne5 {[%emt 0:00:35]} Nxf4 {[%emt 0:05:07]} 14. gxf4 {[%emt 0:01:08]} Bxg2 {[%emt 0:00:08]} 15. Kxg2 {[%emt 0:00:03]} c5 {[%emt 0:00:19] The position is equal.} 16. dxc5 {[%emt 0:05:32]} Bxc5 {[%emt 0:00:32]} 17. Qf3 {[%emt 0:00:06]} Qe7 {[%emt 0:04:04]} 18. Rfd1 {[%emt 0:01:10]} Rfd8 {[%emt 0:01:16]} 19. e3 {[%emt 0:00:05]} Rac8 {[%emt 0:03:56]} 20. Rac1 {[%emt 0:03:59]} Bd6 {[%emt 0:02:51]} 21. Rd4 {[%emt 0:05:52]} Bb4 {[%emt 0:05:18]} 22. Rxd8+ {[%emt 0:05:16]} Rxd8 {[%emt 0:00:33]} 23. Ne4 {[%emt 0:01:59]} Nd7 {[%emt 0:19:03][%cal Bf6d7,Bd7f8,Bf8g6,Bg6e7,Be7c6][%mdl 32]} 24. Nd3 {[%emt 0:10:48][%cal Be5d3,Bd3e1,Be1f3][%mdl 32]} Nf8 {[%emt 0:01:32]} 25. Qe2 {[%emt 0:05:31]} Bd6 {[%emt 0:07:32]} 26. Ne1 {[%emt 0:05:08]} Ng6 {[%emt 0:12:41][%cal Od6f4]} 27. Kg1 {[%emt 0:00:04]} Bb8 {[%emt 0:01:36]} 28. Nf3 {[%emt 0:04:22]} h6 {[%emt 0:00:14]} 29. Qc4 {[%emt 0:03:08]} Qd7 {[%emt 0:02:12]} 30. Ng3 {[%emt 0:09:30]} Ne7 {[%emt 0:01:46]} 31. Qb3 {[%emt 0:01:29]} Nc6 {[%emt 0:00:10] An even fight not without its subleties.   Weighted Error Value: White=0.05 (flawless) /Black=0.05 (flawless) .  Inaccurate:     	White=1     	---        OK:         	White=7     	Black=5      Best:        	---       	Black=1} 1/2-1/2

[Event "50th La Roda Open 2024"]
[Site "La Roda"]
[Date "2024.03.30"]
[Round "7.2"]
[White "Xu, Xiangyu"]
[Black "Martinez Ramirez, Lennis"]
[Result "1-0"]
[ECO "D35"]
[WhiteElo "2623"]
[BlackElo "2450"]
[Annotator "TA"]
[PlyCount "127"]
[EventDate "2024.03.27"]
[EventType "swiss"]
[EventCountry "ESP"]
[SourceTitle "playchess.com"]
[Source "ChessBase"]
[SourceQuality "1"]
[TimeControl "5400+30"]

{[%evp 40,127,43,43,69,68,49,75,69,22,24,22,25,10,14,18,18,27,15,22,18,25,22,28,35,23,24,24,24,24,28,24,24,24,63,50,50,78,50,50,160,162,151,145,375,375,368,275,449,360,1161,1161,1154,1154,1154,1151,1100,1058,1100,1107,1082,1040,905,741,1164,1164,1146,1146,1125,1121,1059,1059,861,730,1754,1960,1207,595,29967,29968,29974,29975,29975,29976,29976,29976,29979,29980,29989,29990]} 1. d4 {[%emt 0:00:03]} Nf6 {[%emt 0:01:14]} 2. c4 {[%emt 0:00:09]} e6 {[%emt 0:00:55]} 3. Nc3 {[%emt 0:00:09]} d5 {[%emt 0:01:32]} 4. cxd5 {[%emt 0:00:09]} exd5 {[%emt 0:00:08]} 5. Bg5 {[%emt 0:00:09]} c6 {[%emt 0:00:32]} 6. e3 {[%emt 0:00:09]} Be7 {[%emt 0:01:23]} 7. Bd3 {[%emt 0:00:10]} Nbd7 {[%emt 0:00:20]} 8. h3 {[%emt 0:00:18] D35: Queen's Gambit Declined: Exchange Variation.} Nf8 {[%emt 0:00:25]} 9. Nf3 {[%emt 0:00:45]} Ne6 {[%emt 0:00:25]} 10. Bh4 {[%emt 0:00:09]} a5 $146 {[%emt 0:00:36]} ({Predecessor:} 10... g6 11. Bg3 Kf8 12. Ke2 Bd6 13. Bxd6+ Qxd6 14. Qg1 Kg7 15. Qh2 Qxh2 16. Rxh2 Re8 {½-½ Anand,V (2756)-Adams,M (2696) Dortmund NC World Masters 2022 (6)}) 11. O-O {[%emt 0:03:59]} O-O {[%emt 0:02:46]} 12. Rc1 {[%emt 0:03:03]} g6 {[%emt 0:00:26]} 13. Na4 {[%emt 0:02:39]} Ra7 {[%emt 0:02:14]} 14. Qb3 {[%emt 0:05:50]} Nh5 {[%emt 0:02:57]} 15. Bxe7 {[%emt 0:01:25]} Qxe7 {[%emt 0:00:02]} 16. Qb6 {[%emt 0:09:40]} Ra8 {[%emt 0:01:21]} 17. Rc3 {[%emt 0:00:17]} Ng5 {[%emt 0:02:07]} 18. Nxg5 {[%emt 0:00:45]} Qxg5 {[%emt 0:00:02]} 19. Kh2 {[%emt 0:00:55]} Qe7 {[%emt 0:09:27]} 20. Qc5 {[%emt 0:03:58]} Qxc5 {[%emt 0:06:24]} 21. dxc5 {[%emt 0:01:15]} Be6 {[%emt 0:00:33]} 22. Nb6 {[%emt 0:01:08]} Rad8 {[%emt 0:00:08]} 23. Ra3 {[%emt 0:00:35]} d4 {[%emt 0:00:31]} 24. e4 {[%emt 0:20:14]} (24. Bc4 $14) 24... Nf4 $11 {[%emt 0:00:45]} 25. Rd1 {[%emt 0:02:59]} f5 {[%emt 0:00:50]} 26. e5 {[%emt 0:01:32]} Nxd3 {[%emt 0:07:20]} 27. Raxd3 {[%emt 0:00:22]} f4 {[%emt 0:00:21]} 28. Rxd4 {[%emt 0:01:19]} Rxd4 {[%emt 0:00:01]} 29. Rxd4 {[%emt 0:00:04]} Bxa2 {[%emt 0:00:07]} 30. Ra4 {[%emt 0:06:52]} Be6 {[%emt 0:00:27]} 31. Rxa5 {[%emt 0:00:05]} Rf5 {[%emt 0:06:18]} 32. Ra8+ {[%emt 0:00:22]} Kg7 {[%emt 0:00:09]} 33. Rb8 {[%emt 0:00:07]} Rxe5 {[%emt 0:00:15]} 34. Rxb7+ {[%emt 0:00:13]} Kf6 {[%emt 0:00:29]} 35. b4 {[%emt 0:01:22]} Re2 {[%emt 0:00:06]} 36. f3 {[%emt 0:03:36]} Rb2 {[%emt 0:00:27]} 37. Rxh7 {[%emt 0:10:02]} Rxb4 {[%emt 0:00:26]} 38. Rc7 {[%emt 0:00:08]} Bd5 {[%emt 0:01:15]} 39. h4 {[%emt 0:01:58]} Rb2 {[%emt 0:00:59]} (39... Ke5 $14) 40. Nxd5+ $16 {[%emt 0:00:52]} cxd5 {[%emt 0:00:04] [#]} 41. Rc6+ $1 {[%emt 0:00:14]} Ke5 $2 {[%emt 0:06:25]} (41... Kf5 $16) 42. Rxg6 $18 {[%emt 0:00:11]} d4 {[%emt 0:01:06]} 43. h5 {[%emt 0:00:26]} Rb8 $2 {[%emt 0:06:32]} (43... Kd5 44. h6 Rb8) 44. Rd6 {[%emt 0:15:50]} Rh8 $2 {[%emt 0:04:10]} (44... Rb5 45. Rg6 Rxc5) 45. h6 $18 {[%emt 0:00:24]} d3 {[%emt 0:00:01]} 46. Kg1 {[%emt 0:04:02]} ({Not} 46. Rxd3 Rxh6+ 47. Kg1 Ra6 $18) 46... d2 {[%emt 0:00:01]} 47. Kf2 {[%emt 0:00:24]} Rxh6 {[%emt 0:00:10]} 48. Rxd2 {[%emt 0:00:03]} Rc6 {[%emt 0:00:01]} 49. Rc2 {[%emt 0:00:07]} Kd4 {[%emt 0:00:59]} 50. Rc1 {[%emt 0:00:03]} (50. g3 Kd3 51. Rc1 fxg3+ 52. Kxg3 Ke3) 50... Kd5 {[%emt 0:02:55]} 51. Rh1 {[%emt 0:00:24]} Ra6 {[%emt 0:00:53]} 52. Rh5+ {[%emt 0:00:16]} Kd4 {[%emt 0:00:01]} 53. Rf5 {[%emt 0:00:18]} Ra2+ {[%emt 0:00:11]} 54. Kg1 {[%emt 0:00:19]} Ra1+ {[%emt 0:00:07]} 55. Kh2 {[%emt 0:00:22]} Ke3 {[%emt 0:00:05]} 56. Kh3 {[%emt 0:00:32]} Rc1 {[%emt 0:03:17]} 57. Kg4 {[%emt 0:01:16]} Rc2 {[%emt 0:01:18]} 58. Re5+ {[%emt 0:00:16]} (58. g3 $142 {Strongly threatening Re5+.} fxg3 59. Kxg3) 58... Kf2 {[%emt 0:00:40]} 59. Kxf4 {[%emt 0:00:10]} Kxg2 {[%emt 0:00:08]} 60. Kg4 {[%emt 0:00:07]} Rc3 {[%emt 0:00:45]} 61. f4 {[%emt 0:00:05]} Rg3+ {[%emt 0:00:07]} 62. Kf5 {[%emt 0:00:03]} Kf3 {[%emt 0:00:03]} 63. c6 {[%emt 0:00:08]} Rg4 {[%emt 0:00:24]} 64. Re3+ {[%emt 0:00:05]} 1-0

[Event "50th La Roda Open 2024"]
[Site "La Roda"]
[Date "2024.03.30"]
[Round "7.3"]
[White "Cruz Lledo, Pablo"]
[Black "Albornoz Cabrera, Carlos Daniel"]
[Result "0-1"]
[ECO "D38"]
[WhiteElo "2353"]
[BlackElo "2603"]
[Annotator "TA"]
[PlyCount "112"]
[EventDate "2024.03.27"]
[EventType "swiss"]
[EventCountry "ESP"]
[SourceTitle "playchess.com"]
[Source "ChessBase"]
[SourceQuality "1"]
[TimeControl "5400+30"]

{[%evp 16,112,13,6,7,5,10,16,13,14,0,0,19,16,22,6,19,28,16,16,19,21,21,24,30,24,37,21,22,30,31,37,16,0,0,0,0,19,16,0,0,0,0,0,0,0,0,0,-12,-173,-179,-164,-149,-145,-146,-153,-181,-216,-223,-190,0,0,0,-185,-169,-432,-425,-419,-402,-765,-410,-410,0,-5010,-4133,-603,-1912,-29980,-29963,-29965,-29966,-29966,-29961,-29973,-29965,-29936,-4885,-29972,-29973,-29978,-29979,-29981,-29976,-29980,-29980,-29984,-29985,-29985,-29983]} 1. d4 {[%emt 0:03:50]} Nf6 {[%emt 0:00:15]} 2. c4 {[%emt 0:00:05]} e6 {[%emt 0:00:02]} 3. Nf3 {[%emt 0:00:14]} d5 {[%emt 0:00:04]} 4. cxd5 {[%emt 0:00:05]} exd5 {[%emt 0:00:04]} 5. Nc3 {[%emt 0:00:07]} Bb4 {[%emt 0:00:41]} 6. Bg5 {[%emt 0:00:08]} h6 {[%emt 0:00:25]} 7. Bxf6 {[%emt 0:00:05]} Qxf6 {[%emt 0:00:04]} 8. Qb3 {[%emt 0:00:11]} Qd6 {[%emt 0:01:37]} 9. a3 {[%emt 0:01:09]} Bxc3+ {[%emt 0:00:33]} 10. Qxc3 {[%emt 0:00:19]} O-O {[%emt 0:00:09]} 11. e3 {[%emt 0:00:11]} Bf5 {[%emt 0:00:29] The position is equal.} 12. Be2 {[%emt 0:00:04]} Nd7 {[%emt 0:01:55][%cal Bb8d7,Bd7b6,Bb6c4][%mdl 32]} 13. O-O {[%emt 0:01:53]} Bg4 {[%emt 0:07:00]} 14. Rfc1 {[%emt 0:06:24]} c6 {[%emt 0:01:04]} 15. b4 {[%emt 0:00:17]} Rac8 {[%emt 0:08:33]} 16. h3 {[%emt 0:08:00]} Bh5 {[%emt 0:02:12]} 17. Qb2 {[%emt 0:00:23]} Nb6 {[%emt 0:12:13]} 18. a4 {[%emt 0:13:20]} Bxf3 {[%emt 0:07:44]} 19. Bxf3 {[%emt 0:00:10]} Nc4 {[%emt 0:00:06]} 20. Qc3 {[%emt 0:00:05]} a6 {[%emt 0:02:09]} 21. e4 {[%emt 0:02:47]} b5 {[%emt 0:02:23]} 22. e5 {[%emt 0:05:54]} Qe7 {[%emt 0:00:10]} 23. axb5 {[%emt 0:03:52]} axb5 {[%emt 0:00:02]} 24. Bg4 {[%emt 0:03:12]} Ra8 {[%emt 0:00:15]} 25. f4 {[%emt 0:00:39]} f6 {[%emt 0:05:27]} 26. Rxa8 {[%emt 0:12:02]} Rxa8 {[%emt 0:00:03]} 27. Ra1 {[%emt 0:00:09]} Ra4 {[%emt 0:08:22]} 28. Rxa4 {[%emt 0:00:08]} bxa4 $11 {[%emt 0:40:29][%mdl 4096] Endgame. KQB-KQN} 29. Be2 {[%emt 0:00:13]} Qf7 {[%emt 0:00:00]} 30. exf6 {[%emt 0:10:13]} gxf6 {[%emt 0:00:00]} 31. Qc2 {[%emt 0:05:32]} a3 {[%emt 0:00:00]} 32. Qa4 $2 {[%emt 0:09:25]} (32. Kh2 $11) 32... Qe8 $1 $19 {[%emt 0:00:00]} 33. Bxc4 {[%emt 0:00:35]} Qe3+ {[%emt 0:00:00]} ({Inferior is} 33... dxc4 34. Qxa3 Qe4 35. Qc3 $11) 34. Kh1 {[%emt 0:00:04]} Qc1+ {[%emt 0:00:00]} 35. Kh2 {[%emt 0:00:37] Threatening mate with Qa8+.} Qxf4+ {[%emt 0:00:00]} ({And not} 35... dxc4 36. Qa8+ Kf7 37. Qb7+ Kg6 38. f5+ Kxf5 39. Qh7+ Ke6 40. Qg8+ Kd6 41. Qd8+ Ke6 42. Qg8+ Kd6 43. Qd8+ Ke6 44. Qg8+ $11) 36. Kh1 {[%emt 0:00:03][%cal Oc4d5]} Qc1+ {[%emt 0:00:00]} 37. Kh2 {[%emt 0:00:09] Threatens to win with Qa8+.} dxc4 {[%emt 0:00:00]} 38. Qxc6 {[%emt 0:00:14] KQ-KQ} Qf4+ $2 {[%emt 0:00:00]} (38... c3 $11 39. Qc8+ Kh7 40. Qb7+ Kh8 41. Qc8+ Kh7 42. Qc7+ Kh8) 39. Kh1 {[%emt 0:00:03] Black continues to play with concentration.} Qxd4 {[%emt 0:00:00] ...c3 would now be deadly.} 40. Qa8+ $2 {[%emt 0:01:26]} (40. b5) 40... Kg7 {[%emt 0:00:00] And now ...c3 would win.} 41. Qxa3 {[%emt 0:00:03]} c3 {[%emt 0:00:00]} 42. b5 {[%emt 0:01:33][%cal Ob5b6]} Qd1+ {[%emt 0:00:00]} 43. Kh2 {[%emt 0:01:15]} c2 {[%emt 0:00:00]} 44. Qe7+ {[%emt 0:02:53]} Kg6 {[%emt 0:00:00]} 45. Qe4+ {[%emt 0:00:46]} Kf7 $1 {[%emt 0:00:00] ( -> ...Qd6+)} 46. Qc4+ {[%emt 0:00:44]} Ke7 {[%emt 0:00:00]} 47. Qc7+ {[%emt 0:00:49]} Ke6 {[%emt 0:00:00]} 48. Qc4+ {[%emt 0:00:03]} Ke5 {[%emt 0:00:00]} 49. Qc3+ {[%emt 0:00:43]} Ke4 {[%emt 0:00:00]} 50. Qc4+ {[%emt 0:00:24]} Ke3 {[%emt 0:00:00]} 51. Qc3+ {[%emt 0:01:17] [#]} Ke2 $1 {[%emt 0:00:00] Black mates.} 52. Qf3+ {[%emt 0:03:32] [#]} Kd2 $1 {[%emt 0:00:00]} 53. Qf4+ {[%emt 0:01:25]} Kd3 {[%emt 0:00:00]} 54. Qf5+ {[%emt 0:03:51]} Kc3 {[%emt 0:00:00]} 55. Qxf6+ {[%emt 0:00:50]} Qd4 {[%emt 0:00:00]} 56. Qxh6 {[%emt 0:02:39]} Qe5+ {[%emt 0:00:00] Weighted Error Value: White=0.26 (precise) /Black=0.02 (flawless) .  Loses game:     	White=1     	---        Mistake:       	White=1     	Black=1      OK:         	White=11    	Black=10     Best:        	White=7     	Black=7      Strong:       	---       	Black=1} 0-1

[Event "50th La Roda Open 2024"]
[Site "La Roda"]
[Date "2024.03.30"]
[Round "7.4"]
[White "Iturrizaga Bonelli, Eduardo"]
[Black "Sanchez Alvarez, Roberto Carlos"]
[Result "1-0"]
[ECO "D35"]
[WhiteElo "2588"]
[BlackElo "2407"]
[Annotator "TA"]
[PlyCount "85"]
[EventDate "2024.03.27"]
[EventType "swiss"]
[EventCountry "ESP"]
[SourceTitle "playchess.com"]
[Source "ChessBase"]
[SourceQuality "1"]
[TimeControl "5400+30"]

{[%evp 15,85,17,18,16,16,23,14,20,18,20,20,22,24,30,17,29,42,25,66,66,82,64,60,64,57,65,58,52,56,48,83,78,105,0,129,149,132,56,43,24,115,109,162,184,166,142,208,205,241,136,147,149,237,268,271,274,268,164,291,310,301,287,344,368,476,468,516,507,541,525,526,465]} 1. c4 {[%emt 0:00:04]} e6 {[%emt 0:03:58]} 2. Nc3 {[%emt 0:00:21]} d5 {[%emt 0:00:10]} 3. d4 {[%emt 0:00:17]} Nf6 {[%emt 0:00:09]} 4. cxd5 {[%emt 0:00:11]} exd5 {[%emt 0:00:06]} 5. Bg5 {[%emt 0:00:05]} Be7 {[%emt 0:00:09]} 6. e3 {[%emt 0:00:10]} O-O {[%emt 0:00:07]} 7. Bd3 {[%emt 0:00:10]} h6 {[%emt 0:00:09]} 8. Bh4 {[%emt 0:00:08]} Re8 {[%emt 0:00:20]} 9. Nge2 {[%emt 0:00:09]} c6 {[%emt 0:00:09]} 10. O-O {[%emt 0:00:11]} a5 {[%emt 0:00:05]} 11. Rc1 {[%emt 0:00:07] The position is equal.} Nbd7 {[%emt 0:00:08]} 12. Re1 {[%emt 0:21:58]} b5 {[%emt 0:00:55][%cal Bb7b5,Bb5b4][%mdl 32]} 13. a4 {[%emt 0:00:25]} b4 {[%emt 0:00:27]} 14. Nb1 {[%emt 0:00:04]} Qb6 {[%emt 0:01:08]} 15. Nd2 {[%emt 0:22:41]} Ba6 {[%emt 0:22:28]} 16. Bf5 {[%emt 0:26:55]} Bxe2 {[%emt 0:31:42]} 17. Rxe2 {[%emt 0:01:15]} c5 {[%emt 0:00:09]} 18. Bxf6 {[%emt 0:08:32]} Nxf6 {[%emt 0:00:04]} 19. dxc5 {[%emt 0:00:05]} Bxc5 {[%emt 0:00:13]} 20. Nb3 {[%emt 0:01:16]} Bd6 {[%emt 0:00:57]} 21. Rec2 {[%emt 0:02:39]} Be5 {[%emt 0:01:34]} 22. g3 {[%emt 0:03:22]} Rad8 {[%emt 0:04:54]} 23. Bd3 {[%emt 0:08:36]} Re6 {[%emt 0:02:51] Dodges Rc6} 24. Bf5 {[%emt 0:01:18]} (24. Qe2 $16) 24... Re7 {[%emt 0:04:42]} (24... Ree8 $1 $11) 25. Rc6 $36 {[%emt 0:00:24][%mdl 2048] Keeping Black busy.} Qa7 {[%emt 0:00:13]} 26. Nd4 {[%emt 0:01:11]} ({White should play} 26. R1c2 $16) 26... Bxd4 $14 {[%emt 0:02:11]} 27. exd4 {[%emt 0:00:52]} Rde8 {[%emt 0:01:59]} (27... Ne4 $1 $11 {remains equal.}) 28. Qd3 $16 {[%emt 0:00:31] White is more active.} Ne4 {[%emt 0:02:28]} (28... Qb7 $16 {might work better.}) 29. Ra6 $18 {[%emt 0:00:20]} Qb7 {[%emt 0:06:36]} 30. Rxa5 {[%emt 0:00:03]} Nd6 {[%emt 0:00:04]} (30... g6 $16 {keeps fighting.}) 31. b3 {[%emt 0:00:56]} Kf8 {[%emt 0:00:59]} 32. Rac5 {[%emt 0:00:23]} (32. Qf3 $18) 32... g6 $16 {[%emt 0:00:30]} 33. Bg4 {[%emt 0:00:45]} h5 {[%emt 0:02:17]} (33... Ne4 $16) 34. Bf3 $18 {[%emt 0:00:06]} Ne4 {[%emt 0:02:34]} 35. Bxe4 {[%emt 0:00:07]} Rxe4 {[%emt 0:00:26]} 36. Qf3 {[%emt 0:01:19] [#] And now Rc7 would win.} Re1+ {[%emt 0:01:36]} (36... Qa6 $142 37. Kg2 (37. Rxd5 $2 Re1+ 38. Rxe1 Rxe1+ 39. Kg2 Qf1#) 37... h4) 37. Rxe1 {[%emt 0:00:20]} Rxe1+ {[%emt 0:00:02][%mdl 4096] Endgame. KQR-KQR} 38. Kg2 {[%emt 0:00:04]} Qa6 {[%emt 0:00:19]} 39. Rb5 $1 {[%emt 0:00:07]} (39. Qxd5 $2 Qf1+ 40. Kf3 Re2 41. Rc8+ Kg7 $19) 39... Re4 {[%emt 0:01:18]} 40. Rxd5 {[%emt 0:00:31] White is clearly winning.} ({Weaker is} 40. Rxb4 h4 $18) 40... Re1 {[%emt 0:00:55]} 41. Rb5 {[%emt 0:00:06]} Kg7 {[%emt 0:00:10]} 42. h4 {[%emt 0:00:24]} (42. Rxb4 $2 Qf1#) 42... Rb1 {[%emt 0:01:58]} 43. Qd5 {[%emt 0:00:47] Weighted Error Value: White=0.16 (very precise) /Black=0.33.  Mistake:       	White=3     	Black=6      Inaccurate:     	White=1     	Black=3      OK:         	White=14    	Black=7      Best:        	White=4     	Black=2      Strong:       	White=1     	---} (43. Rxb4 $2 {is the wrong capture.} Qf1+ 44. Kh2 Rb2 $19) 1-0

[Event "50th La Roda Open 2024"]
[Site "La Roda"]
[Date "2024.03.30"]
[Round "7.5"]
[White "Iglesias Ferreira, Andres"]
[Black "Siddharth, Jagadeesh"]
[Result "0-1"]
[ECO "B07"]
[WhiteElo "2234"]
[BlackElo "2490"]
[Annotator "TA"]
[PlyCount "56"]
[EventDate "2024.03.27"]
[EventType "swiss"]
[EventCountry "ESP"]
[SourceTitle "playchess.com"]
[Source "ChessBase"]
[SourceQuality "1"]
[TimeControl "5400+30"]

{[%evp 9,56,16,35,12,17,0,0,0,0,0,0,-4,0,-29,0,0,-10,-30,-16,-43,-51,-79,-77,-76,-80,-69,-58,-61,-58,-61,-68,-77,0,-219,-182,-268,-268,-323,-217,-236,-154,-362,-367,-370,-361,-691,-681,-1505,-1500]} 1. e4 {[%emt 0:04:13]} d6 {[%emt 0:00:07]} 2. d4 {[%emt 0:00:17]} Nf6 {[%emt 0:00:20]} 3. Nc3 {[%emt 0:00:19]} e6 {[%emt 0:00:09]} 4. Nf3 {[%emt 0:02:54]} Be7 {[%emt 0:00:09]} 5. Be2 {[%emt 0:00:10]} a6 {[%emt 0:01:23]} 6. a4 {[%emt 0:00:12]} d5 {[%emt 0:00:05]} 7. exd5 {[%emt 0:06:39]} exd5 {[%emt 0:00:13]} 8. O-O {[%emt 0:00:10] The position is equal.} O-O {[%emt 0:00:11]} 9. h3 {[%emt 0:00:46]} Nc6 {[%emt 0:01:29]} 10. Ne5 {[%emt 0:00:31]} Nb4 {[%emt 0:01:37]} 11. Nb1 {[%emt 0:02:02]} c5 {[%emt 0:04:39]} 12. c3 {[%emt 0:00:54]} Nc6 {[%emt 0:00:02]} 13. Nxc6 {[%emt 0:00:45]} bxc6 {[%emt 0:00:03]} 14. dxc5 {[%emt 0:01:54]} Bxc5 {[%emt 0:01:30]} 15. Nd2 {[%emt 0:01:57]} Qd6 {[%emt 0:02:23][%cal Oc8h3]} 16. b4 {[%emt 0:09:12]} Ba7 {[%emt 0:00:38][%cal Oc8h3] aiming for ...Bxh3!} 17. c4 {[%emt 0:01:41] [#]} Bxh3 $1 {[%emt 0:03:49] ( -> ...Qg3). Black has more active pieces.} 18. c5 {[%emt 0:00:25]} Qe5 {[%emt 0:00:07]} 19. Ra3 {[%emt 0:21:54]} Bd7 $40 {[%emt 0:00:44][%cal Oa6a5][%mdl 128] Black attacks.} 20. Re3 {[%emt 0:00:27]} Qd4 {[%emt 0:03:12]} (20... Qf4 $17 21. Ba3 Ng4) 21. Qb3 $2 {[%emt 0:07:14]} (21. Ne4 $1 $11 Qxb4 22. Ba3 (22. Nxf6+ gxf6 23. Rg3+ Kh8 $11) 22... Qxe4 23. Rxe4 Nxe4 24. Qd4 (24. Bxa6 Bxc5 25. Bd3 Bxa3 $15)) 21... Rab8 {[%emt 0:02:02]} 22. b5 {[%emt 0:07:11]} (22. Bb2 $142 Qxb4 (22... Qxd2 23. Bc3 $16) 23. Bxf6 Qxd2 24. Rg3) 22... cxb5 $19 {[%emt 0:04:18]} (22... Bxc5 23. Qc2 Ba7 (23... axb5 24. Nb3 $16) 24. Bb2 $19) (22... axb5 23. axb5 cxb5 (23... Qxc5 24. Ba3 $15) 24. Bb2 Qxc5 (24... Qxd2 25. Bc3 $14) 25. Bxf6 gxf6 26. Bd3 $19) 23. Bb2 {[%emt 0:10:45]} Qh4 {[%emt 0:02:26]} (23... Qxc5 24. Bxf6 gxf6 25. axb5 $19) 24. Rg3 {[%emt 0:02:56]} Bxc5 {[%emt 0:04:29]} 25. Be5 $2 {[%emt 0:04:09] This costs White the game.} (25. Bxf6 $17 Qxf6 26. Qxd5) 25... Rbe8 {[%emt 0:03:35]} 26. Nf3 {[%emt 0:02:08] [#]} Qh6 {[%emt 0:00:09]} (26... Qxa4 $2 {perishes.} 27. Bxf6 g6 (27... Qxb3 28. Rxg7+ Kh8 29. Rg6#) (27... Bxf2+ $2 28. Rxf2 g6 29. Qxa4 $18) 28. Qxd5 Rxe2 29. Qxc5 $18 (29. Qxd7 Qf4 $14)) (26... bxa4 27. Qc2 (27. Qc3 Qxg3 28. Bxg3 Ne4 $17) 27... Qh6 (27... Qe4 $2 28. Bxf6 g6 29. Qxc5 $18) 28. Qxc5 $14) 27. Qc3 $2 {[%emt 0:01:20]} (27. axb5 Ng4 28. Bxg7 Qxg7 29. Qxd5 Rxe2 (29... Bxb5 30. Bxb5 Bxf2+ 31. Rxf2 $11) 30. Qxc5 Bxb5 31. Qf5) 27... Ne4 {[%emt 0:00:43]} 28. Bxg7 {[%emt 0:03:03]} Nxg3 {[%emt 0:00:07] Weighted Error Value: White=0.88/Black=0.23 (precise) .  Loses game:     	White=2     	---        Mistake:       	White=2     	Black=1      Inaccurate:     	White=4     	Black=2      OK:         	White=6     	Black=8      Best:        	---       	Black=2} 0-1